{"text_format":"3","workbook":"xlsx","n_sheets":3,"sheets":["Dienas grafiks","Pasākumu plānotājs","Laika intervāli"],"not_rendered":{"images":1,"defined_names":21},"read":"whole","date_system":"1900"}

{"sheet":"Dienas grafiks","index":0,"n_rows":75,"n_cols":13,"rows_kept":75,"merged":[[1,1,5,2],[2,12,4,12],[3,7,4,7],[5,12,7,12],[6,1,8,2],[8,12,10,12],[9,7,10,7],[10,1,10,2],[11,12,13,12],[14,12,16,12],[15,7,16,7],[17,12,19,12],[18,1,18,2],[20,12,22,12],[21,7,22,7],[23,12,25,12],[25,1,25,2],[26,7,27,7],[26,12,28,12],[29,12,31,12],[31,7,32,7],[32,12,34,12]]}
[null,"Dienas grafiks"]
[null,{"$f":"IFERROR(DAY(DatVērt),\"\")","v":9},null,null,"Laiks",{"$f":"IFERROR(UPPER(TEXT(DATE(AtskaitesGads,MēnešaNumurs,AtskaitesDiena),\"dd.mmmm.yyyy\")),\"\")","v":"09.SEPTEMBRIS.2019"},null,"NEDĒĻA ĪSUMĀ",{"$nulls":3},"PIEZĪMES/UZDEVUMU SARAKSTS"]
[{"$nulls":4},{"$f":"'Laika intervāli'!E3","v":"06:00:00"},{"$f":"IFERROR(INDEX(Pasākumu_plānotājs[],MATCH(DATEVALUE(DatVērt)&DienasGrafiks[[#This Row],[Laiks]],MeklētDatumuUnLaiku,0),3),\"\")","v":"Mošanās"},null,{"$f":"IFERROR(TEXT(DATEVALUE(DatVērt)+1,\"dddd\"),\"\")","v":"otrdiena"},{"$f":"IFERROR(INDEX(Pasākumu_plānotājs[],MATCH($H$6&\"|\"&ROW(A1),Pasākumu_plānotājs[UNIKĀLA VĒRTĪBA (APRĒĶINĀTS)],0),2),\"\")","v":"06:30:00"},{"$f":"IFERROR(INDEX(Pasākumu_plānotājs[],MATCH($H$6&\"|\"&ROW(A1),Pasākumu_plānotājs[UNIKĀLA VĒRTĪBA (APRĒĶINĀTS)],0),3),\"\")","v":"Brokastis"},null,null,"Izņemšana ķīmiskajā tīrītavā"]
[{"$nulls":4},{"$f":"'Laika intervāli'!E4","v":"06:15:00"},{"$f":"IFERROR(INDEX(Pasākumu_plānotājs[],MATCH(DATEVALUE(DatVērt)&DienasGrafiks[[#This Row],[Laiks]],MeklētDatumuUnLaiku,0),3),\"\")","v":""},null,{"$f":"IFERROR(TEXT(DATEVALUE(DatVērt)+1,\"d\"),\"\")","v":"10"},{"$f":"IFERROR(INDEX(Pasākumu_plānotājs[],MATCH($H$6&\"|\"&ROW(A2),Pasākumu_plānotājs[UNIKĀLA VĒRTĪBA (APRĒĶINĀTS)],0),2),\"\")","v":"07:30:00"},{"$f":"IFERROR(INDEX(Pasākumu_plānotājs[],MATCH($H$6&\"|\"&ROW(A2),Pasākumu_plānotājs[UNIKĀLA VĒRTĪBA (APRĒĶINĀTS)],0),3),\"\")","v":"Došanās uz darbu"}]
[{"$nulls":4},{"$f":"'Laika intervāli'!E5","v":"06:30:00"},{"$f":"IFERROR(INDEX(Pasākumu_plānotājs[],MATCH(DATEVALUE(DatVērt)&DienasGrafiks[[#This Row],[Laiks]],MeklētDatumuUnLaiku,0),3),\"\")","v":"Duša"},null,null,{"$f":"IFERROR(INDEX(Pasākumu_plānotājs[],MATCH($H$6&\"|\"&ROW(A3),Pasākumu_plānotājs[UNIKĀLA VĒRTĪBA (APRĒĶINĀTS)],0),2),\"\")","v":""},{"$f":"IFERROR(INDEX(Pasākumu_plānotājs[],MATCH($H$6&\"|\"&ROW(A3),Pasākumu_plānotājs[UNIKĀLA VĒRTĪBA (APRĒĶINĀTS)],0),3),\"\")","v":""}]
[{"$nulls":4},{"$f":"'Laika intervāli'!E6","v":"06:45:00"},{"$f":"IFERROR(INDEX(Pasākumu_plānotājs[],MATCH(DATEVALUE(DatVērt)&DienasGrafiks[[#This Row],[Laiks]],MeklētDatumuUnLaiku,0),3),\"\")","v":""},null,{"$f":"IFERROR(DatVērt+1,\"\")","v":"2019-09-10"},{"$f":"IFERROR(INDEX(Pasākumu_plānotājs[],MATCH($H$6&\"|\"&ROW(A4),Pasākumu_plānotājs[UNIKĀLA VĒRTĪBA (APRĒĶINĀTS)],0),2),\"\")","v":""},{"$f":"IFERROR(INDEX(Pasākumu_plānotājs[],MATCH($H$6&\"|\"&ROW(A4),Pasākumu_plānotājs[UNIKĀLA VĒRTĪBA (APRĒĶINĀTS)],0),3),\"\")","v":""},null,null,"Piezvanīt televīzijas operatoram"]
[null,{"$f":"IFERROR(TEXT(DatVērt,\"dddd\"),\"\")","v":"pirmdiena"},null,null,{"$f":"'Laika intervāli'!E7","v":"07:00:00"},{"$f":"IFERROR(INDEX(Pasākumu_plānotājs[],MATCH(DATEVALUE(DatVērt)&DienasGrafiks[[#This Row],[Laiks]],MeklētDatumuUnLaiku,0),3),\"\")","v":""},null,null,{"$f":"IFERROR(INDEX(Pasākumu_plānotājs[],MATCH($H$6&\"|\"&ROW(A5),Pasākumu_plānotājs[UNIKĀLA VĒRTĪBA (APRĒĶINĀTS)],0),2),\"\")","v":""},{"$f":"IFERROR(INDEX(Pasākumu_plānotājs[],MATCH($H$6&\"|\"&ROW(A5),Pasākumu_plānotājs[UNIKĀLA VĒRTĪBA (APRĒĶINĀTS)],0),3),\"\")","v":""}]
[{"$nulls":4},{"$f":"'Laika intervāli'!E8","v":"07:15:00"},{"$f":"IFERROR(INDEX(Pasākumu_plānotājs[],MATCH(DATEVALUE(DatVērt)&DienasGrafiks[[#This Row],[Laiks]],MeklētDatumuUnLaiku,0),3),\"\")","v":""},null,null,{"$f":"IFERROR(INDEX(Pasākumu_plānotājs[],MATCH($H$6&\"|\"&ROW(A6),Pasākumu_plānotājs[UNIKĀLA VĒRTĪBA (APRĒĶINĀTS)],0),2),\"\")","v":""},{"$f":"IFERROR(INDEX(Pasākumu_plānotājs[],MATCH($H$6&\"|\"&ROW(A6),Pasākumu_plānotājs[UNIKĀLA VĒRTĪBA (APRĒĶINĀTS)],0),3),\"\")","v":""}]
[{"$nulls":4},{"$f":"'Laika intervāli'!E9","v":"07:30:00"},{"$f":"IFERROR(INDEX(Pasākumu_plānotājs[],MATCH(DATEVALUE(DatVērt)&DienasGrafiks[[#This Row],[Laiks]],MeklētDatumuUnLaiku,0),3),\"\")","v":"Došanās uz darbu"},null,{"$f":"IFERROR(TEXT(DATEVALUE(DatVērt)+2,\"dddd\"),\"\")","v":"trešdiena"},{"$f":"IFERROR(INDEX(Pasākumu_plānotājs[],MATCH($H$12&\"|\"&ROW(A1),Pasākumu_plānotājs[UNIKĀLA VĒRTĪBA (APRĒĶINĀTS)],0),2),\"\")","v":""},{"$f":"IFERROR(INDEX(Pasākumu_plānotājs[],MATCH($H$12&\"|\"&ROW(A1),Pasākumu_plānotājs[UNIKĀLA VĒRTĪBA (APRĒĶINĀTS)],0),3),\"\")","v":""}]
[{"$nulls":4},{"$f":"'Laika intervāli'!E10","v":"07:45:00"},{"$f":"IFERROR(INDEX(Pasākumu_plānotājs[],MATCH(DATEVALUE(DatVērt)&DienasGrafiks[[#This Row],[Laiks]],MeklētDatumuUnLaiku,0),3),\"\")","v":""},null,{"$f":"IFERROR(TEXT(DATEVALUE(DatVērt)+2,\"d\"),\"\")","v":"11"},{"$f":"IFERROR(INDEX(Pasākumu_plānotājs[],MATCH($H$12&\"|\"&ROW(A2),Pasākumu_plānotājs[UNIKĀLA VĒRTĪBA (APRĒĶINĀTS)],0),2),\"\")","v":""},{"$f":"IFERROR(INDEX(Pasākumu_plānotājs[],MATCH($H$12&\"|\"&ROW(A2),Pasākumu_plānotājs[UNIKĀLA VĒRTĪBA (APRĒĶINĀTS)],0),3),\"\")","v":""}]
[null,"SKATĪT GRAFIKU",null,null,{"$f":"'Laika intervāli'!E11","v":"08:00:00"},{"$f":"IFERROR(INDEX(Pasākumu_plānotājs[],MATCH(DATEVALUE(DatVērt)&DienasGrafiks[[#This Row],[Laiks]],MeklētDatumuUnLaiku,0),3),\"\")","v":"Sākt maiņu"},null,null,{"$f":"IFERROR(INDEX(Pasākumu_plānotājs[],MATCH($H$12&\"|\"&ROW(A3),Pasākumu_plānotājs[UNIKĀLA VĒRTĪBA (APRĒĶINĀTS)],0),2),\"\")","v":""},{"$f":"IFERROR(INDEX(Pasākumu_plānotājs[],MATCH($H$12&\"|\"&ROW(A3),Pasākumu_plānotājs[UNIKĀLA VĒRTĪBA (APRĒĶINĀTS)],0),3),\"\")","v":""}]
[{"$nulls":4},{"$f":"'Laika intervāli'!E12","v":"08:15:00"},{"$f":"IFERROR(INDEX(Pasākumu_plānotājs[],MATCH(DATEVALUE(DatVērt)&DienasGrafiks[[#This Row],[Laiks]],MeklētDatumuUnLaiku,0),3),\"\")","v":""},null,{"$f":"IFERROR(DatVērt+2,\"\")","v":"2019-09-11"},{"$f":"IFERROR(INDEX(Pasākumu_plānotājs[],MATCH($H$12&\"|\"&ROW(A4),Pasākumu_plānotājs[UNIKĀLA VĒRTĪBA (APRĒĶINĀTS)],0),2),\"\")","v":""},{"$f":"IFERROR(INDEX(Pasākumu_plānotājs[],MATCH($H$12&\"|\"&ROW(A4),Pasākumu_plānotājs[UNIKĀLA VĒRTĪBA (APRĒĶINĀTS)],0),3),\"\")","v":""}]
[null,"Gads",null,null,{"$f":"'Laika intervāli'!E13","v":"08:30:00"},{"$f":"IFERROR(INDEX(Pasākumu_plānotājs[],MATCH(DATEVALUE(DatVērt)&DienasGrafiks[[#This Row],[Laiks]],MeklētDatumuUnLaiku,0),3),\"\")","v":""},null,null,{"$f":"IFERROR(INDEX(Pasākumu_plānotājs[],MATCH($H$12&\"|\"&ROW(A5),Pasākumu_plānotājs[UNIKĀLA VĒRTĪBA (APRĒĶINĀTS)],0),2),\"\")","v":""},{"$f":"IFERROR(INDEX(Pasākumu_plānotājs[],MATCH($H$12&\"|\"&ROW(A5),Pasākumu_plānotājs[UNIKĀLA VĒRTĪBA (APRĒĶINĀTS)],0),3),\"\")","v":""}]
[{"$nulls":4},{"$f":"'Laika intervāli'!E14","v":"08:45:00"},{"$f":"IFERROR(INDEX(Pasākumu_plānotājs[],MATCH(DATEVALUE(DatVērt)&DienasGrafiks[[#This Row],[Laiks]],MeklētDatumuUnLaiku,0),3),\"\")","v":""},null,null,{"$f":"IFERROR(INDEX(Pasākumu_plānotājs[],MATCH($H$12&\"|\"&ROW(A6),Pasākumu_plānotājs[UNIKĀLA VĒRTĪBA (APRĒĶINĀTS)],0),2),\"\")","v":""},{"$f":"IFERROR(INDEX(Pasākumu_plānotājs[],MATCH($H$12&\"|\"&ROW(A6),Pasākumu_plānotājs[UNIKĀLA VĒRTĪBA (APRĒĶINĀTS)],0),3),\"\")","v":""}]
[null,"Mēnesis",null,null,{"$f":"'Laika intervāli'!E15","v":"09:00:00"},{"$f":"IFERROR(INDEX(Pasākumu_plānotājs[],MATCH(DATEVALUE(DatVērt)&DienasGrafiks[[#This Row],[Laiks]],MeklētDatumuUnLaiku,0),3),\"\")","v":""},null,{"$f":"IFERROR(TEXT(DATEVALUE(DatVērt)+3,\"dddd\"),\"\")","v":"ceturtdiena"},{"$f":"IFERROR(INDEX(Pasākumu_plānotājs[],MATCH($H$18&\"|\"&ROW(A1),Pasākumu_plānotājs[UNIKĀLA VĒRTĪBA (APRĒĶINĀTS)],0),2),\"\")","v":""},{"$f":"IFERROR(INDEX(Pasākumu_plānotājs[],MATCH($H$18&\"|\"&ROW(A1),Pasākumu_plānotājs[UNIKĀLA VĒRTĪBA (APRĒĶINĀTS)],0),3),\"\")","v":""}]
[{"$nulls":4},{"$f":"'Laika intervāli'!E16","v":"09:15:00"},{"$f":"IFERROR(INDEX(Pasākumu_plānotājs[],MATCH(DATEVALUE(DatVērt)&DienasGrafiks[[#This Row],[Laiks]],MeklētDatumuUnLaiku,0),3),\"\")","v":""},null,{"$f":"IFERROR(TEXT(DATEVALUE(DatVērt)+3,\"d\"),\"\")","v":"12"},{"$f":"IFERROR(INDEX(Pasākumu_plānotājs[],MATCH($H$18&\"|\"&ROW(A2),Pasākumu_plānotājs[UNIKĀLA VĒRTĪBA (APRĒĶINĀTS)],0),2),\"\")","v":""},{"$f":"IFERROR(INDEX(Pasākumu_plānotājs[],MATCH($H$18&\"|\"&ROW(A2),Pasākumu_plānotājs[UNIKĀLA VĒRTĪBA (APRĒĶINĀTS)],0),3),\"\")","v":""}]
[null,"Diena",null,null,{"$f":"'Laika intervāli'!E17","v":"09:30:00"},{"$f":"IFERROR(INDEX(Pasākumu_plānotājs[],MATCH(DATEVALUE(DatVērt)&DienasGrafiks[[#This Row],[Laiks]],MeklētDatumuUnLaiku,0),3),\"\")","v":""},null,null,{"$f":"IFERROR(INDEX(Pasākumu_plānotājs[],MATCH($H$18&\"|\"&ROW(A3),Pasākumu_plānotājs[UNIKĀLA VĒRTĪBA (APRĒĶINĀTS)],0),2),\"\")","v":""},{"$f":"IFERROR(INDEX(Pasākumu_plānotājs[],MATCH($H$18&\"|\"&ROW(A3),Pasākumu_plānotājs[UNIKĀLA VĒRTĪBA (APRĒĶINĀTS)],0),3),\"\")","v":""}]
[{"$nulls":4},{"$f":"'Laika intervāli'!E18","v":"09:45:00"},{"$f":"IFERROR(INDEX(Pasākumu_plānotājs[],MATCH(DATEVALUE(DatVērt)&DienasGrafiks[[#This Row],[Laiks]],MeklētDatumuUnLaiku,0),3),\"\")","v":""},null,{"$f":"IFERROR(DatVērt+3,\"\")","v":"2019-09-12"},{"$f":"IFERROR(INDEX(Pasākumu_plānotājs[],MATCH($H$18&\"|\"&ROW(A4),Pasākumu_plānotājs[UNIKĀLA VĒRTĪBA (APRĒĶINĀTS)],0),2),\"\")","v":""},{"$f":"IFERROR(INDEX(Pasākumu_plānotājs[],MATCH($H$18&\"|\"&ROW(A4),Pasākumu_plānotājs[UNIKĀLA VĒRTĪBA (APRĒĶINĀTS)],0),3),\"\")","v":""}]
[null,"REDIĢĒT GRAFIKU",null,null,{"$f":"'Laika intervāli'!E19","v":"10:00:00"},{"$f":"IFERROR(INDEX(Pasākumu_plānotājs[],MATCH(DATEVALUE(DatVērt)&DienasGrafiks[[#This Row],[Laiks]],MeklētDatumuUnLaiku,0),3),\"\")","v":"Pārtraukums"},null,null,{"$f":"IFERROR(INDEX(Pasākumu_plānotājs[],MATCH($H$18&\"|\"&ROW(A5),Pasākumu_plānotājs[UNIKĀLA VĒRTĪBA (APRĒĶINĀTS)],0),2),\"\")","v":""},{"$f":"IFERROR(INDEX(Pasākumu_plānotājs[],MATCH($H$18&\"|\"&ROW(A5),Pasākumu_plānotājs[UNIKĀLA VĒRTĪBA (APRĒĶINĀTS)],0),3),\"\")","v":""}]
[{"$nulls":4},{"$f":"'Laika intervāli'!E20","v":"10:15:00"},{"$f":"IFERROR(INDEX(Pasākumu_plānotājs[],MATCH(DATEVALUE(DatVērt)&DienasGrafiks[[#This Row],[Laiks]],MeklētDatumuUnLaiku,0),3),\"\")","v":""},null,null,{"$f":"IFERROR(INDEX(Pasākumu_plānotājs[],MATCH($H$18&\"|\"&ROW(A6),Pasākumu_plānotājs[UNIKĀLA VĒRTĪBA (APRĒĶINĀTS)],0),2),\"\")","v":""},{"$f":"IFERROR(INDEX(Pasākumu_plānotājs[],MATCH($H$18&\"|\"&ROW(A6),Pasākumu_plānotājs[UNIKĀLA VĒRTĪBA (APRĒĶINĀTS)],0),3),\"\")","v":""}]
[null,"Atlasiet, lai rediģētu laika intervālus",null,null,{"$f":"'Laika intervāli'!E21","v":"10:30:00"},{"$f":"IFERROR(INDEX(Pasākumu_plānotājs[],MATCH(DATEVALUE(DatVērt)&DienasGrafiks[[#This Row],[Laiks]],MeklētDatumuUnLaiku,0),3),\"\")","v":""},null,{"$f":"IFERROR(TEXT(DATEVALUE(DatVērt)+4,\"dddd\"),\"\")","v":"piektdiena"},{"$f":"IFERROR(INDEX(Pasākumu_plānotājs[],MATCH($H$24&\"|\"&ROW(A1),Pasākumu_plānotājs[UNIKĀLA VĒRTĪBA (APRĒĶINĀTS)],0),2),\"\")","v":""},{"$f":"IFERROR(INDEX(Pasākumu_plānotājs[],MATCH($H$24&\"|\"&ROW(A1),Pasākumu_plānotājs[UNIKĀLA VĒRTĪBA (APRĒĶINĀTS)],0),3),\"\")","v":""}]
[{"$nulls":4},{"$f":"'Laika intervāli'!E22","v":"10:45:00"},{"$f":"IFERROR(INDEX(Pasākumu_plānotājs[],MATCH(DATEVALUE(DatVērt)&DienasGrafiks[[#This Row],[Laiks]],MeklētDatumuUnLaiku,0),3),\"\")","v":""},null,{"$f":"IFERROR(TEXT(DATEVALUE(DatVērt)+4,\"d\"),\"\")","v":"13"},{"$f":"IFERROR(INDEX(Pasākumu_plānotājs[],MATCH($H$24&\"|\"&ROW(A2),Pasākumu_plānotājs[UNIKĀLA VĒRTĪBA (APRĒĶINĀTS)],0),2),\"\")","v":""},{"$f":"IFERROR(INDEX(Pasākumu_plānotājs[],MATCH($H$24&\"|\"&ROW(A2),Pasākumu_plānotājs[UNIKĀLA VĒRTĪBA (APRĒĶINĀTS)],0),3),\"\")","v":""}]
[null,"Atlasiet, lai pievienotu jaunu pasākumu",null,null,{"$f":"'Laika intervāli'!E23","v":"11:00:00"},{"$f":"IFERROR(INDEX(Pasākumu_plānotājs[],MATCH(DATEVALUE(DatVērt)&DienasGrafiks[[#This Row],[Laiks]],MeklētDatumuUnLaiku,0),3),\"\")","v":""},null,null,{"$f":"IFERROR(INDEX(Pasākumu_plānotājs[],MATCH($H$24&\"|\"&ROW(A3),Pasākumu_plānotājs[UNIKĀLA VĒRTĪBA (APRĒĶINĀTS)],0),2),\"\")","v":""},{"$f":"IFERROR(INDEX(Pasākumu_plānotājs[],MATCH($H$24&\"|\"&ROW(A3),Pasākumu_plānotājs[UNIKĀLA VĒRTĪBA (APRĒĶINĀTS)],0),3),\"\")","v":""}]
[{"$nulls":4},{"$f":"'Laika intervāli'!E24","v":"11:15:00"},{"$f":"IFERROR(INDEX(Pasākumu_plānotājs[],MATCH(DATEVALUE(DatVērt)&DienasGrafiks[[#This Row],[Laiks]],MeklētDatumuUnLaiku,0),3),\"\")","v":""},null,{"$f":"IFERROR(DatVērt+4,\"\")","v":"2019-09-13"},{"$f":"IFERROR(INDEX(Pasākumu_plānotājs[],MATCH($H$24&\"|\"&ROW(A4),Pasākumu_plānotājs[UNIKĀLA VĒRTĪBA (APRĒĶINĀTS)],0),2),\"\")","v":""},{"$f":"IFERROR(INDEX(Pasākumu_plānotājs[],MATCH($H$24&\"|\"&ROW(A4),Pasākumu_plānotājs[UNIKĀLA VĒRTĪBA (APRĒĶINĀTS)],0),3),\"\")","v":""}]
[null,"IEZĪMĒT GRAFIKĀ:",null,null,{"$f":"'Laika intervāli'!E25","v":"11:30:00"},{"$f":"IFERROR(INDEX(Pasākumu_plānotājs[],MATCH(DATEVALUE(DatVērt)&DienasGrafiks[[#This Row],[Laiks]],MeklētDatumuUnLaiku,0),3),\"\")","v":""},null,null,{"$f":"IFERROR(INDEX(Pasākumu_plānotājs[],MATCH($H$24&\"|\"&ROW(A5),Pasākumu_plānotājs[UNIKĀLA VĒRTĪBA (APRĒĶINĀTS)],0),2),\"\")","v":""},{"$f":"IFERROR(INDEX(Pasākumu_plānotājs[],MATCH($H$24&\"|\"&ROW(A5),Pasākumu_plānotājs[UNIKĀLA VĒRTĪBA (APRĒĶINĀTS)],0),3),\"\")","v":""}]
[null,"Pārtraukums",null,null,{"$f":"'Laika intervāli'!E26","v":"11:45:00"},{"$f":"IFERROR(INDEX(Pasākumu_plānotājs[],MATCH(DATEVALUE(DatVērt)&DienasGrafiks[[#This Row],[Laiks]],MeklētDatumuUnLaiku,0),3),\"\")","v":""},null,{"$f":"IFERROR(TEXT(DATEVALUE(DatVērt)+5,\"dddd\"),\"\")","v":"sestdiena"},{"$f":"IFERROR(INDEX(Pasākumu_plānotājs[],MATCH($H$29&\"|\"&ROW(A1),Pasākumu_plānotājs[UNIKĀLA VĒRTĪBA (APRĒĶINĀTS)],0),2),\"\")","v":""},{"$f":"IFERROR(INDEX(Pasākumu_plānotājs[],MATCH($H$29&\"|\"&ROW(A1),Pasākumu_plānotājs[UNIKĀLA VĒRTĪBA (APRĒĶINĀTS)],0),3),\"\")","v":""}]
[{"$nulls":4},{"$f":"'Laika intervāli'!E27","v":"12:00:00"},{"$f":"IFERROR(INDEX(Pasākumu_plānotājs[],MATCH(DATEVALUE(DatVērt)&DienasGrafiks[[#This Row],[Laiks]],MeklētDatumuUnLaiku,0),3),\"\")","v":"Pusdienas"},null,{"$f":"IFERROR(TEXT(DATEVALUE(DatVērt)+5,\"d\"),\"\")","v":"14"},{"$f":"IFERROR(INDEX(Pasākumu_plānotājs[],MATCH($H$29&\"|\"&ROW(A2),Pasākumu_plānotājs[UNIKĀLA VĒRTĪBA (APRĒĶINĀTS)],0),2),\"\")","v":""},{"$f":"IFERROR(INDEX(Pasākumu_plānotājs[],MATCH($H$29&\"|\"&ROW(A2),Pasākumu_plānotājs[UNIKĀLA VĒRTĪBA (APRĒĶINĀTS)],0),3),\"\")","v":""}]
[{"$nulls":4},{"$f":"'Laika intervāli'!E28","v":"12:15:00"},{"$f":"IFERROR(INDEX(Pasākumu_plānotājs[],MATCH(DATEVALUE(DatVērt)&DienasGrafiks[[#This Row],[Laiks]],MeklētDatumuUnLaiku,0),3),\"\")","v":""},null,null,{"$f":"IFERROR(INDEX(Pasākumu_plānotājs[],MATCH($H$29&\"|\"&ROW(A3),Pasākumu_plānotājs[UNIKĀLA VĒRTĪBA (APRĒĶINĀTS)],0),2),\"\")","v":""},{"$f":"IFERROR(INDEX(Pasākumu_plānotājs[],MATCH($H$29&\"|\"&ROW(A3),Pasākumu_plānotājs[UNIKĀLA VĒRTĪBA (APRĒĶINĀTS)],0),3),\"\")","v":""}]
[{"$nulls":4},{"$f":"'Laika intervāli'!E29","v":"12:30:00"},{"$f":"IFERROR(INDEX(Pasākumu_plānotājs[],MATCH(DATEVALUE(DatVērt)&DienasGrafiks[[#This Row],[Laiks]],MeklētDatumuUnLaiku,0),3),\"\")","v":""},null,{"$f":"IFERROR(DatVērt+5,\"\")","v":"2019-09-14"},{"$f":"IFERROR(INDEX(Pasākumu_plānotājs[],MATCH($H$29&\"|\"&ROW(A4),Pasākumu_plānotājs[UNIKĀLA VĒRTĪBA (APRĒĶINĀTS)],0),2),\"\")","v":""},{"$f":"IFERROR(INDEX(Pasākumu_plānotājs[],MATCH($H$29&\"|\"&ROW(A4),Pasākumu_plānotājs[UNIKĀLA VĒRTĪBA (APRĒĶINĀTS)],0),3),\"\")","v":""}]
[{"$nulls":4},{"$f":"'Laika intervāli'!E30","v":"12:45:00"},{"$f":"IFERROR(INDEX(Pasākumu_plānotājs[],MATCH(DATEVALUE(DatVērt)&DienasGrafiks[[#This Row],[Laiks]],MeklētDatumuUnLaiku,0),3),\"\")","v":""},null,null,{"$f":"IFERROR(INDEX(Pasākumu_plānotājs[],MATCH($H$29&\"|\"&ROW(A5),Pasākumu_plānotājs[UNIKĀLA VĒRTĪBA (APRĒĶINĀTS)],0),2),\"\")","v":""},{"$f":"IFERROR(INDEX(Pasākumu_plānotājs[],MATCH($H$29&\"|\"&ROW(A5),Pasākumu_plānotājs[UNIKĀLA VĒRTĪBA (APRĒĶINĀTS)],0),3),\"\")","v":""}]
[{"$nulls":4},{"$f":"'Laika intervāli'!E31","v":"13:00:00"},{"$f":"IFERROR(INDEX(Pasākumu_plānotājs[],MATCH(DATEVALUE(DatVērt)&DienasGrafiks[[#This Row],[Laiks]],MeklētDatumuUnLaiku,0),3),\"\")","v":""},null,{"$f":"IFERROR(TEXT(DATEVALUE(DatVērt)+6,\"dddd\"),\"\")","v":"svētdiena"},{"$f":"IFERROR(INDEX(Pasākumu_plānotājs[],MATCH($H$34&\"|\"&ROW(A1),Pasākumu_plānotājs[UNIKĀLA VĒRTĪBA (APRĒĶINĀTS)],0),2),\"\")","v":""},{"$f":"IFERROR(INDEX(Pasākumu_plānotājs[],MATCH($H$34&\"|\"&ROW(A1),Pasākumu_plānotājs[UNIKĀLA VĒRTĪBA (APRĒĶINĀTS)],0),3),\"\")","v":""}]
[{"$nulls":4},{"$f":"'Laika intervāli'!E32","v":"13:15:00"},{"$f":"IFERROR(INDEX(Pasākumu_plānotājs[],MATCH(DATEVALUE(DatVērt)&DienasGrafiks[[#This Row],[Laiks]],MeklētDatumuUnLaiku,0),3),\"\")","v":""},null,{"$f":"IFERROR(TEXT(DATEVALUE(DatVērt)+6,\"d\"),\"\")","v":"15"},{"$f":"IFERROR(INDEX(Pasākumu_plānotājs[],MATCH($H$34&\"|\"&ROW(A2),Pasākumu_plānotājs[UNIKĀLA VĒRTĪBA (APRĒĶINĀTS)],0),2),\"\")","v":""},{"$f":"IFERROR(INDEX(Pasākumu_plānotājs[],MATCH($H$34&\"|\"&ROW(A2),Pasākumu_plānotājs[UNIKĀLA VĒRTĪBA (APRĒĶINĀTS)],0),3),\"\")","v":""}]
[{"$nulls":4},{"$f":"'Laika intervāli'!E33","v":"13:30:00"},{"$f":"IFERROR(INDEX(Pasākumu_plānotājs[],MATCH(DATEVALUE(DatVērt)&DienasGrafiks[[#This Row],[Laiks]],MeklētDatumuUnLaiku,0),3),\"\")","v":"Uzņēmuma zvans"},null,null,{"$f":"IFERROR(INDEX(Pasākumu_plānotājs[],MATCH($H$34&\"|\"&ROW(A3),Pasākumu_plānotājs[UNIKĀLA VĒRTĪBA (APRĒĶINĀTS)],0),2),\"\")","v":""},{"$f":"IFERROR(INDEX(Pasākumu_plānotājs[],MATCH($H$34&\"|\"&ROW(A3),Pasākumu_plānotājs[UNIKĀLA VĒRTĪBA (APRĒĶINĀTS)],0),3),\"\")","v":""}]
[{"$nulls":4},{"$f":"'Laika intervāli'!E34","v":"13:45:00"},{"$f":"IFERROR(INDEX(Pasākumu_plānotājs[],MATCH(DATEVALUE(DatVērt)&DienasGrafiks[[#This Row],[Laiks]],MeklētDatumuUnLaiku,0),3),\"\")","v":""},null,{"$f":"IFERROR(DatVērt+6,\"\")","v":"2019-09-15"},{"$f":"IFERROR(INDEX(Pasākumu_plānotājs[],MATCH($H$34&\"|\"&ROW(A4),Pasākumu_plānotājs[UNIKĀLA VĒRTĪBA (APRĒĶINĀTS)],0),2),\"\")","v":""},{"$f":"IFERROR(INDEX(Pasākumu_plānotājs[],MATCH($H$34&\"|\"&ROW(A4),Pasākumu_plānotājs[UNIKĀLA VĒRTĪBA (APRĒĶINĀTS)],0),3),\"\")","v":""}]
[{"$nulls":4},{"$f":"'Laika intervāli'!E35","v":"14:00:00"},{"$f":"IFERROR(INDEX(Pasākumu_plānotājs[],MATCH(DATEVALUE(DatVērt)&DienasGrafiks[[#This Row],[Laiks]],MeklētDatumuUnLaiku,0),3),\"\")","v":""},null,null,{"$f":"IFERROR(INDEX(Pasākumu_plānotājs[],MATCH($H$34&\"|\"&ROW(A5),Pasākumu_plānotājs[UNIKĀLA VĒRTĪBA (APRĒĶINĀTS)],0),2),\"\")","v":""},{"$f":"IFERROR(INDEX(Pasākumu_plānotājs[],MATCH($H$34&\"|\"&ROW(A5),Pasākumu_plānotājs[UNIKĀLA VĒRTĪBA (APRĒĶINĀTS)],0),3),\"\")","v":""}]
[{"$nulls":4},{"$f":"'Laika intervāli'!E36","v":"14:15:00"},{"$f":"IFERROR(INDEX(Pasākumu_plānotājs[],MATCH(DATEVALUE(DatVērt)&DienasGrafiks[[#This Row],[Laiks]],MeklētDatumuUnLaiku,0),3),\"\")","v":""}]
[{"$nulls":4},{"$f":"'Laika intervāli'!E37","v":"14:30:00"},{"$f":"IFERROR(INDEX(Pasākumu_plānotājs[],MATCH(DATEVALUE(DatVērt)&DienasGrafiks[[#This Row],[Laiks]],MeklētDatumuUnLaiku,0),3),\"\")","v":""}]
[{"$nulls":4},{"$f":"'Laika intervāli'!E38","v":"14:45:00"},{"$f":"IFERROR(INDEX(Pasākumu_plānotājs[],MATCH(DATEVALUE(DatVērt)&DienasGrafiks[[#This Row],[Laiks]],MeklētDatumuUnLaiku,0),3),\"\")","v":""}]
[{"$nulls":4},{"$f":"'Laika intervāli'!E39","v":"15:00:00"},{"$f":"IFERROR(INDEX(Pasākumu_plānotājs[],MATCH(DATEVALUE(DatVērt)&DienasGrafiks[[#This Row],[Laiks]],MeklētDatumuUnLaiku,0),3),\"\")","v":"Pārtraukums"}]
[{"$nulls":4},{"$f":"'Laika intervāli'!E40","v":"15:15:00"},{"$f":"IFERROR(INDEX(Pasākumu_plānotājs[],MATCH(DATEVALUE(DatVērt)&DienasGrafiks[[#This Row],[Laiks]],MeklētDatumuUnLaiku,0),3),\"\")","v":""}]
[{"$nulls":4},{"$f":"'Laika intervāli'!E41","v":"15:30:00"},{"$f":"IFERROR(INDEX(Pasākumu_plānotājs[],MATCH(DATEVALUE(DatVērt)&DienasGrafiks[[#This Row],[Laiks]],MeklētDatumuUnLaiku,0),3),\"\")","v":""}]
[{"$nulls":4},{"$f":"'Laika intervāli'!E42","v":"15:45:00"},{"$f":"IFERROR(INDEX(Pasākumu_plānotājs[],MATCH(DATEVALUE(DatVērt)&DienasGrafiks[[#This Row],[Laiks]],MeklētDatumuUnLaiku,0),3),\"\")","v":""}]
[{"$nulls":4},{"$f":"'Laika intervāli'!E43","v":"16:00:00"},{"$f":"IFERROR(INDEX(Pasākumu_plānotājs[],MATCH(DATEVALUE(DatVērt)&DienasGrafiks[[#This Row],[Laiks]],MeklētDatumuUnLaiku,0),3),\"\")","v":""}]
[{"$nulls":4},{"$f":"'Laika intervāli'!E44","v":"16:15:00"},{"$f":"IFERROR(INDEX(Pasākumu_plānotājs[],MATCH(DATEVALUE(DatVērt)&DienasGrafiks[[#This Row],[Laiks]],MeklētDatumuUnLaiku,0),3),\"\")","v":""}]
[{"$nulls":4},{"$f":"'Laika intervāli'!E45","v":"16:30:00"},{"$f":"IFERROR(INDEX(Pasākumu_plānotājs[],MATCH(DATEVALUE(DatVērt)&DienasGrafiks[[#This Row],[Laiks]],MeklētDatumuUnLaiku,0),3),\"\")","v":""}]
[{"$nulls":4},{"$f":"'Laika intervāli'!E46","v":"16:45:00"},{"$f":"IFERROR(INDEX(Pasākumu_plānotājs[],MATCH(DATEVALUE(DatVērt)&DienasGrafiks[[#This Row],[Laiks]],MeklētDatumuUnLaiku,0),3),\"\")","v":""}]
[{"$nulls":4},{"$f":"'Laika intervāli'!E47","v":"17:00:00"},{"$f":"IFERROR(INDEX(Pasākumu_plānotājs[],MATCH(DATEVALUE(DatVērt)&DienasGrafiks[[#This Row],[Laiks]],MeklētDatumuUnLaiku,0),3),\"\")","v":"Mājas"}]
[{"$nulls":4},{"$f":"'Laika intervāli'!E48","v":"17:15:00"},{"$f":"IFERROR(INDEX(Pasākumu_plānotājs[],MATCH(DATEVALUE(DatVērt)&DienasGrafiks[[#This Row],[Laiks]],MeklētDatumuUnLaiku,0),3),\"\")","v":""}]
[{"$nulls":4},{"$f":"'Laika intervāli'!E49","v":"17:30:00"},{"$f":"IFERROR(INDEX(Pasākumu_plānotājs[],MATCH(DATEVALUE(DatVērt)&DienasGrafiks[[#This Row],[Laiks]],MeklētDatumuUnLaiku,0),3),\"\")","v":""}]
[{"$nulls":4},{"$f":"'Laika intervāli'!E50","v":"17:45:00"},{"$f":"IFERROR(INDEX(Pasākumu_plānotājs[],MATCH(DATEVALUE(DatVērt)&DienasGrafiks[[#This Row],[Laiks]],MeklētDatumuUnLaiku,0),3),\"\")","v":""}]
[{"$nulls":4},{"$f":"'Laika intervāli'!E51","v":"18:00:00"},{"$f":"IFERROR(INDEX(Pasākumu_plānotājs[],MATCH(DATEVALUE(DatVērt)&DienasGrafiks[[#This Row],[Laiks]],MeklētDatumuUnLaiku,0),3),\"\")","v":"Futbola treniņš"}]
[{"$nulls":4},{"$f":"'Laika intervāli'!E52","v":"18:15:00"},{"$f":"IFERROR(INDEX(Pasākumu_plānotājs[],MATCH(DATEVALUE(DatVērt)&DienasGrafiks[[#This Row],[Laiks]],MeklētDatumuUnLaiku,0),3),\"\")","v":""}]
[{"$nulls":4},{"$f":"'Laika intervāli'!E53","v":"18:30:00"},{"$f":"IFERROR(INDEX(Pasākumu_plānotājs[],MATCH(DATEVALUE(DatVērt)&DienasGrafiks[[#This Row],[Laiks]],MeklētDatumuUnLaiku,0),3),\"\")","v":""}]
[{"$nulls":4},{"$f":"'Laika intervāli'!E54","v":"18:45:00"},{"$f":"IFERROR(INDEX(Pasākumu_plānotājs[],MATCH(DATEVALUE(DatVērt)&DienasGrafiks[[#This Row],[Laiks]],MeklētDatumuUnLaiku,0),3),\"\")","v":""}]
[{"$nulls":4},{"$f":"'Laika intervāli'!E55","v":"19:00:00"},{"$f":"IFERROR(INDEX(Pasākumu_plānotājs[],MATCH(DATEVALUE(DatVērt)&DienasGrafiks[[#This Row],[Laiks]],MeklētDatumuUnLaiku,0),3),\"\")","v":""}]
[{"$nulls":4},{"$f":"'Laika intervāli'!E56","v":"19:15:00"},{"$f":"IFERROR(INDEX(Pasākumu_plānotājs[],MATCH(DATEVALUE(DatVērt)&DienasGrafiks[[#This Row],[Laiks]],MeklētDatumuUnLaiku,0),3),\"\")","v":""}]
[{"$nulls":4},{"$f":"'Laika intervāli'!E57","v":"19:30:00"},{"$f":"IFERROR(INDEX(Pasākumu_plānotājs[],MATCH(DATEVALUE(DatVērt)&DienasGrafiks[[#This Row],[Laiks]],MeklētDatumuUnLaiku,0),3),\"\")","v":""}]
[{"$nulls":4},{"$f":"'Laika intervāli'!E58","v":"19:45:00"},{"$f":"IFERROR(INDEX(Pasākumu_plānotājs[],MATCH(DATEVALUE(DatVērt)&DienasGrafiks[[#This Row],[Laiks]],MeklētDatumuUnLaiku,0),3),\"\")","v":""}]
[{"$nulls":4},{"$f":"'Laika intervāli'!E59","v":"20:00:00"},{"$f":"IFERROR(INDEX(Pasākumu_plānotājs[],MATCH(DATEVALUE(DatVērt)&DienasGrafiks[[#This Row],[Laiks]],MeklētDatumuUnLaiku,0),3),\"\")","v":""}]
[{"$nulls":4},{"$f":"'Laika intervāli'!E60","v":"20:15:00"},{"$f":"IFERROR(INDEX(Pasākumu_plānotājs[],MATCH(DATEVALUE(DatVērt)&DienasGrafiks[[#This Row],[Laiks]],MeklētDatumuUnLaiku,0),3),\"\")","v":""}]
[{"$nulls":4},{"$f":"'Laika intervāli'!E61","v":"20:30:00"},{"$f":"IFERROR(INDEX(Pasākumu_plānotājs[],MATCH(DATEVALUE(DatVērt)&DienasGrafiks[[#This Row],[Laiks]],MeklētDatumuUnLaiku,0),3),\"\")","v":""}]
[{"$nulls":4},{"$f":"'Laika intervāli'!E62","v":"20:45:00"},{"$f":"IFERROR(INDEX(Pasākumu_plānotājs[],MATCH(DATEVALUE(DatVērt)&DienasGrafiks[[#This Row],[Laiks]],MeklētDatumuUnLaiku,0),3),\"\")","v":""}]
[{"$nulls":4},{"$f":"'Laika intervāli'!E63","v":"21:00:00"},{"$f":"IFERROR(INDEX(Pasākumu_plānotājs[],MATCH(DATEVALUE(DatVērt)&DienasGrafiks[[#This Row],[Laiks]],MeklētDatumuUnLaiku,0),3),\"\")","v":""}]
[{"$nulls":4},{"$f":"'Laika intervāli'!E64","v":""},{"$f":"IFERROR(INDEX(Pasākumu_plānotājs[],MATCH(DATEVALUE(DatVērt)&DienasGrafiks[[#This Row],[Laiks]],MeklētDatumuUnLaiku,0),3),\"\")","v":""}]
[{"$nulls":4},{"$f":"'Laika intervāli'!E65","v":""},{"$f":"IFERROR(INDEX(Pasākumu_plānotājs[],MATCH(DATEVALUE(DatVērt)&DienasGrafiks[[#This Row],[Laiks]],MeklētDatumuUnLaiku,0),3),\"\")","v":""}]
[{"$nulls":4},{"$f":"'Laika intervāli'!E66","v":""},{"$f":"IFERROR(INDEX(Pasākumu_plānotājs[],MATCH(DATEVALUE(DatVērt)&DienasGrafiks[[#This Row],[Laiks]],MeklētDatumuUnLaiku,0),3),\"\")","v":""}]
[{"$nulls":4},{"$f":"'Laika intervāli'!E67","v":""},{"$f":"IFERROR(INDEX(Pasākumu_plānotājs[],MATCH(DATEVALUE(DatVērt)&DienasGrafiks[[#This Row],[Laiks]],MeklētDatumuUnLaiku,0),3),\"\")","v":""}]
[{"$nulls":4},{"$f":"'Laika intervāli'!E68","v":""},{"$f":"IFERROR(INDEX(Pasākumu_plānotājs[],MATCH(DATEVALUE(DatVērt)&DienasGrafiks[[#This Row],[Laiks]],MeklētDatumuUnLaiku,0),3),\"\")","v":""}]
[{"$nulls":4},{"$f":"'Laika intervāli'!E69","v":""},{"$f":"IFERROR(INDEX(Pasākumu_plānotājs[],MATCH(DATEVALUE(DatVērt)&DienasGrafiks[[#This Row],[Laiks]],MeklētDatumuUnLaiku,0),3),\"\")","v":""}]
[{"$nulls":4},{"$f":"'Laika intervāli'!E70","v":""},{"$f":"IFERROR(INDEX(Pasākumu_plānotājs[],MATCH(DATEVALUE(DatVērt)&DienasGrafiks[[#This Row],[Laiks]],MeklētDatumuUnLaiku,0),3),\"\")","v":""}]
[{"$nulls":4},{"$f":"'Laika intervāli'!E71","v":""},{"$f":"IFERROR(INDEX(Pasākumu_plānotājs[],MATCH(DATEVALUE(DatVērt)&DienasGrafiks[[#This Row],[Laiks]],MeklētDatumuUnLaiku,0),3),\"\")","v":""}]
[{"$nulls":4},{"$f":"'Laika intervāli'!E72","v":""},{"$f":"IFERROR(INDEX(Pasākumu_plānotājs[],MATCH(DATEVALUE(DatVērt)&DienasGrafiks[[#This Row],[Laiks]],MeklētDatumuUnLaiku,0),3),\"\")","v":""}]
[{"$nulls":4},{"$f":"'Laika intervāli'!E73","v":""},{"$f":"IFERROR(INDEX(Pasākumu_plānotājs[],MATCH(DATEVALUE(DatVērt)&DienasGrafiks[[#This Row],[Laiks]],MeklētDatumuUnLaiku,0),3),\"\")","v":""}]
[{"$nulls":4},{"$f":"'Laika intervāli'!E74","v":""},{"$f":"IFERROR(INDEX(Pasākumu_plānotājs[],MATCH(DATEVALUE(DatVērt)&DienasGrafiks[[#This Row],[Laiks]],MeklētDatumuUnLaiku,0),3),\"\")","v":""}]
[{"$nulls":4},{"$f":"'Laika intervāli'!E75","v":""},{"$f":"IFERROR(INDEX(Pasākumu_plānotājs[],MATCH(DATEVALUE(DatVērt)&DienasGrafiks[[#This Row],[Laiks]],MeklētDatumuUnLaiku,0),3),\"\")","v":""}]

{"sheet":"Pasākumu plānotājs","index":1,"n_rows":15,"n_cols":8,"rows_kept":15,"merged":[[1,1,4,2],[5,1,6,2],[7,1,7,2]]}
[null,"Pasākumu plānotājs"]
[null,{"$f":"DAY(DatVērt)","v":9},null,null,"DATUMS","LAIKS","APRAKSTS","UNIKĀLA VĒRTĪBA (APRĒĶINĀTS)"]
[{"$nulls":4},{"$f":"TODAY()","v":"2019-09-09"},"06:00:00","Mošanās",{"$f":"Pasākumu_plānotājs[[#This Row],[DATUMS]]&\"|\"&COUNTIF($E$3:E3,E3)","v":"43717|1"}]
[{"$nulls":4},{"$f":"TODAY()","v":"2019-09-09"},"06:30:00","Duša",{"$f":"Pasākumu_plānotājs[[#This Row],[DATUMS]]&\"|\"&COUNTIF($E$3:E4,E4)","v":"43717|2"}]
[{"$nulls":4},"2019-09-09","07:30:00","Došanās uz darbu",{"$f":"Pasākumu_plānotājs[[#This Row],[DATUMS]]&\"|\"&COUNTIF($E$3:E5,E5)","v":"43717|3"}]
[null,{"$f":"TEXT(DatVērt,\"dddd\")","v":"pirmdiena"},null,null,"2019-09-09","08:00:00","Sākt maiņu",{"$f":"Pasākumu_plānotājs[[#This Row],[DATUMS]]&\"|\"&COUNTIF($E$3:E6,E6)","v":"43717|4"}]
[{"$nulls":4},"2019-09-09","10:00:00","Pārtraukums",{"$f":"Pasākumu_plānotājs[[#This Row],[DATUMS]]&\"|\"&COUNTIF($E$3:E7,E7)","v":"43717|5"}]
[null,{"$f":"DatVērt","v":"09.SEPTEMBRIS.2019"},null,null,"2019-09-09","12:00:00","Pusdienas",{"$f":"Pasākumu_plānotājs[[#This Row],[DATUMS]]&\"|\"&COUNTIF($E$3:E8,E8)","v":"43717|6"}]
[{"$nulls":4},"2019-09-09","13:00:00","Atgriešanās darbā",{"$f":"Pasākumu_plānotājs[[#This Row],[DATUMS]]&\"|\"&COUNTIF($E$3:E9,E9)","v":"43717|7"}]
[null,"Atlasiet, lai rediģētu laika intervālus",null,null,"2019-09-09","13:30:00","Uzņēmuma zvans",{"$f":"Pasākumu_plānotājs[[#This Row],[DATUMS]]&\"|\"&COUNTIF($E$3:E10,E10)","v":"43717|8"}]
[{"$nulls":4},"2019-09-09","15:00:00","Pārtraukums",{"$f":"Pasākumu_plānotājs[[#This Row],[DATUMS]]&\"|\"&COUNTIF($E$3:E11,E11)","v":"43717|9"}]
[null,"Atlasiet, lai skatītu dienas grafiku",null,null,"2019-09-09","17:00:00","Mājas",{"$f":"Pasākumu_plānotājs[[#This Row],[DATUMS]]&\"|\"&COUNTIF($E$3:E12,E12)","v":"43717|10"}]
[{"$nulls":4},"2019-09-09","18:00:00","Futbola treniņš",{"$f":"Pasākumu_plānotājs[[#This Row],[DATUMS]]&\"|\"&COUNTIF($E$3:E13,E13)","v":"43717|11"}]
[{"$nulls":4},{"$f":"TODAY()+1","v":"2019-09-10"},"06:30:00","Brokastis",{"$f":"Pasākumu_plānotājs[[#This Row],[DATUMS]]&\"|\"&COUNTIF($E$3:E14,E14)","v":"43718|1"}]
[{"$nulls":4},{"$f":"TODAY()+1","v":"2019-09-10"},"07:30:00","Došanās uz darbu",{"$f":"Pasākumu_plānotājs[[#This Row],[DATUMS]]&\"|\"&COUNTIF($E$3:E15,E15)","v":"43718|2"}]

{"sheet":"Laika intervāli","index":2,"n_rows":75,"n_cols":5,"rows_kept":75,"merged":[[1,1,1,2],[9,1,9,2]]}
[null,"Laika intervāli"]
[null,"REDIĢĒT LAIKA TABULU",null,null,"Laiks"]
[{"$nulls":4},{"$f":"Sākuma_laiks","v":"06:00:00"}]
[null,"Sākuma laiks","06:00:00",null,{"$f":"IFERROR(IF($E3+Pieaugums>BeiguLaiks,\"\",$E3+Pieaugums),\"\")","v":"06:15:00"}]
[{"$nulls":4},"06:30:00"]
[null,"Intervāls","15 MIN",null,"06:45:00"]
[{"$nulls":4},"07:00:00"]
[null,"Beigu laiks","21:00:00",null,"07:15:00"]
[{"$nulls":4},"07:30:00"]
[null,"SKATĪT GRAFIKU",null,null,"07:45:00"]
[{"$nulls":4},"08:00:00"]
[null,"Atlasiet, lai skatītu dienas grafiku",null,null,"08:15:00"]
[{"$nulls":4},"08:30:00"]
[null,"Atlasiet, lai pievienotu jaunu pasākumu",null,null,"08:45:00"]
[{"$nulls":4},"09:00:00"]
[{"$nulls":4},"09:15:00"]
[{"$nulls":4},"09:30:00"]
[{"$nulls":4},"09:45:00"]
[{"$nulls":4},"10:00:00"]
[{"$nulls":4},"10:15:00"]
[{"$nulls":4},"10:30:00"]
[{"$nulls":4},"10:45:00"]
[{"$nulls":4},"11:00:00"]
[{"$nulls":4},"11:15:00"]
[{"$nulls":4},"11:30:00"]
[{"$nulls":4},"11:45:00"]
[{"$nulls":4},"12:00:00"]
[{"$nulls":4},"12:15:00"]
[{"$nulls":4},"12:30:00"]
[{"$nulls":4},"12:45:00"]
[{"$nulls":4},"13:00:00"]
[{"$nulls":4},"13:15:00"]
[{"$nulls":4},"13:30:00"]
[{"$nulls":4},"13:45:00"]
[{"$nulls":4},"14:00:00"]
[{"$nulls":4},{"$f":"IFERROR(IF($E35+Pieaugums>BeiguLaiks,\"\",$E35+Pieaugums),\"\")","v":"14:15:00"}]
[{"$nulls":4},"14:30:00"]
[{"$nulls":4},"14:45:00"]
[{"$nulls":4},"15:00:00"]
[{"$nulls":4},"15:15:00"]
[{"$nulls":4},"15:30:00"]
[{"$nulls":4},"15:45:00"]
[{"$nulls":4},"16:00:00"]
[{"$nulls":4},"16:15:00"]
[{"$nulls":4},"16:30:00"]
[{"$nulls":4},"16:45:00"]
[{"$nulls":4},"17:00:00"]
[{"$nulls":4},"17:15:00"]
[{"$nulls":4},"17:30:00"]
[{"$nulls":4},"17:45:00"]
[{"$nulls":4},"18:00:00"]
[{"$nulls":4},"18:15:00"]
[{"$nulls":4},"18:30:00"]
[{"$nulls":4},"18:45:00"]
[{"$nulls":4},"19:00:00"]
[{"$nulls":4},"19:15:00"]
[{"$nulls":4},"19:30:00"]
[{"$nulls":4},"19:45:00"]
[{"$nulls":4},"20:00:00"]
[{"$nulls":4},"20:15:00"]
[{"$nulls":4},"20:30:00"]
[{"$nulls":4},"20:45:00"]
[{"$nulls":4},"21:00:00"]
[{"$nulls":4},""]
[{"$nulls":4},""]
[{"$nulls":4},""]
[{"$nulls":4},""]
[{"$nulls":4},{"$f":"IFERROR(IF($E67+Pieaugums>BeiguLaiks,\"\",$E67+Pieaugums),\"\")","v":""}]
[{"$nulls":4},""]
[{"$nulls":4},""]
[{"$nulls":4},""]
[{"$nulls":4},""]
[{"$nulls":4},""]
[{"$nulls":4},""]
[{"$nulls":4},""]